bitfinex-derivatives/quotes_ETHF0:USTF0_20240826
["timestamp","ask_amount","ask_price","bid_price","bid_amount"]
[1724685898072,0.36753,2720.1,2720.0,0.36753]
[1724685898882,0.36754,2720.0,2719.9,0.36754]
[1724685900077,0.36755,2719.9,2719.8,3.54755]
[1724685900481,1.92279,2720.2,2719.8,6.8568]
[1724685900688,1.92279,2720.2,2719.9,0.36754]
[1724685900689,0.36755,2720.0,2719.9,0.36754]
[1724685900875,0.36755,2719.9,2719.8,3.54755]
[1724685901289,0.36754,2720.0,2719.9,0.36754]
[1724685901585,0.36754,2720.0,2719.8,6.8568]
[1724685901586,0.36755,2719.9,2719.8,4.01025]
[1724685901780,0.36755,2719.9,2719.8,3.54755]
[1724685901975,0.36755,2719.9,2719.8,3.18]
[1724685902577,0.36755,2719.9,2719.8,3.54756]
[1724685902783,0.36755,2719.9,2719.8,3.18]
[1724685902983,0.36758,2719.7,2719.6,0.9570858]
[1724685903893,0.36758,2719.7,2719.6,1.3246658]
[1724685904282,0.36757,2719.8,2719.7,0.36757]
[1724685904498,1.92279,2720.2,2719.6,0.9570858]
[1724685904799,0.36754,2720.0,2719.9,0.36754]
[1724685905092,1.92279,2720.2,2719.8,3.18]
[1724685905093,0.36755,2719.9,2719.8,3.18]
[1724685905790,1.004,2720.2,2719.8,3.18]
[1724685905996,3.2078,2720.3,2720.1,3.18]
[1724685906182,0.92273892,2720.5,2720.1,3.18]
[1724685906183,0.00405892,2720.5,2720.1,3.18]
[1724685906387,0.36749,2720.3,2720.2,1.4651]
[1724685906795,0.36749,2720.4,2720.2,1.4651]
[1724685907292,0.00405892,2720.5,2720.2,1.4651]
[1724685907293,0.37152892,2720.5,2720.2,1.4651]
[1724685907488,0.00405892,2720.5,2720.4,0.36748]
[1724685907690,0.00405892,2720.5,2720.4,3.54748]
[1724685907990,0.36748,2720.4,2720.1,0.95267438]
[1724685908292,0.36752,2720.1,2720.0,1.92847438]
[1724685908502,0.36752,2720.1,2720.0,0.9758]
[1724685909589,0.36749,2720.4,2720.2,0.3675]
[1724685909896,0.36749,2720.3,2720.2,3.18]
[1724685910196,0.00405892,2720.5,2720.3,0.36749]
[1724685910498,0.37152892,2720.5,2720.3,0.36749]
[1724685911087,0.36748,2720.4,2720.2,3.5475]
[1724685912185,0.00405892,2720.5,2720.2,3.18]
[1724685912388,0.00405892,2720.5,2720.0,0.4898]
[1724685912389,4.59873892,2720.5,2720.0,0.4898]
[1724685912691,0.36752,2720.1,2720.0,0.4898]
[1724685913292,0.36756,2719.8,2719.7,5.65227438]
[1724685913493,0.36756,2719.8,2719.7,4.6996]
[1724685913690,0.36758,2719.7,2719.6,0.9606421]
[1724685913995,0.3676,2719.5,2719.4,0.00551724]
[1724685914190,4.0452,2719.5,2719.4,0.00551724]
[1724685914988,4.0452,2719.5,2719.4,0.00885124]
[1724685915185,0.3676,2719.5,2719.4,0.00885124]
[1724685916895,4.0452,2719.5,2719.4,0.00885124]
[1724685917894,0.3676,2719.5,2719.4,0.00885124]
[1724685918092,4.12674,2719.8,2719.4,0.00885124]
[1724685918093,3.2078,2719.8,2719.4,0.00885124]
[1724685918298,3.2078,2719.8,2719.4,3.66505124]
[1724685918597,0.36753,2720.1,2719.8,0.36756]
[1724685918789,0.36754,2720.0,2719.7,0.36757]
[1724685918999,0.36755,2719.9,2719.7,0.36757]
[1724685919194,0.36754,2720.0,2719.8,0.36756]
[1724685919401,3.6929,2720.3,2719.7,3.18]
[1724685919703,0.36751,2720.2,2719.9,0.36754]
[1724685919892,4.61167,2720.3,2719.7,3.18]
[1724685920093,0.36756,2719.9,2719.6,41.16758]
[1724685920491,0.36756,2719.9,2719.6,0.36758]
[1724685920890,0.36754,2720.0,2719.7,0.36757]
[1724685921298,0.36756,2719.9,2719.6,0.36758]
[1724685921606,0.86813,2720.1,2719.8,0.36756]
[1724685921804,0.36751,2720.2,2719.7,3.18]
[1724685922006,0.36753,2720.1,2719.8,0.36756]
[1724685922405,3.2078,2720.3,2719.7,3.18]
[1724685922704,0.3675,2720.3,2719.9,0.36754]
[1724685922898,0.36751,2720.2,2720.0,0.4751]
[1724685923099,0.36751,2720.2,2720.0,0.9462]
[1724685923297,0.36752,2720.1,2720.0,0.9462]
[1724685924404,0.36755,2719.9,2719.7,6.75537]
[1724685924607,0.91878,2720.2,2719.7,6.75537]
[1724685924901,0.36755,2720.0,2719.7,6.75537]
[1724685925106,0.91878,2720.2,2719.7,6.3878]
[1724685925499,0.36755,2719.9,2719.7,6.75537]
[1724685925906,0.36755,2719.9,2719.7,6.3878]
[1724685926102,0.36754,2720.0,2719.8,0.36756]
[1724685926806,0.36753,2720.1,2719.8,0.36756]
[1724685927114,1.41932,2720.4,2720.1,0.36752]
[1724685927115,0.36749,2720.4,2720.1,0.36752]
[1724685927311,0.36749,2720.3,2720.2,0.9913]
[1724685927502,0.92275892,2720.5,2720.2,1.35881]
[1724685927503,0.36749,2720.4,2720.2,1.35881]
[1724685927804,0.36749,2720.4,2720.2,0.9913]
[1724685928401,0.36749,2720.3,2720.2,0.9913]
[1724685928905,0.36749,2720.4,2720.2,0.9913]
[1724685929313,0.36749,2720.3,2720.2,0.9913]
[1724685930514,0.36749,2720.4,2720.2,1.3588]
[1724685930805,0.36749,2720.3,2720.2,1.3588]
[1724685931010,0.84123892,2720.5,2720.3,0.36749]
[1724685931211,0.37153892,2720.5,2720.3,0.36749]
[1724685931402,0.00405892,2720.5,2720.4,0.36748]
[1724685931707,0.00405892,2720.5,2720.2,0.9913]
[1724685932008,0.36748,2720.4,2720.3,0.36749]
[1724685932403,0.00405892,2720.5,2720.2,0.4954]
[1724685932404,0.36749,2720.3,2720.2,0.4954]
[1724685934107,1.28623,2720.3,2720.2,0.4954]
[1724685934808,0.36749,2720.3,2720.2,0.4954]
[1724685936006,0.4953,2720.4,2720.2,0.8629]
[1724685936311,0.36749,2720.3,2720.2,0.8629]
[1724685936906,0.36749,2720.3,2720.2,0.4954]
[1724685937504,0.36749,2720.3,2720.2,0.8629]
[1724685937809,0.36748,2720.4,2720.3,0.36748]
[1724685938612,0.36749,2720.4,2720.2,0.8629]
[1724685938814,0.36749,2720.4,2720.3,0.36749]
[1724685939515,0.36749,2720.3,2720.2,0.4954]
[1724685939914,0.36752,2720.2,2719.8,0.95623068]
[1724685940116,0.36752,2720.2,2719.7,4.63681158]
[1724685940117,4.12661,2720.1,2719.5,1.90633068]
[1724685940311,0.36755,2719.9,2719.6,0.36759]
[1724685940517,0.87184,2720.0,2719.7,0.36757]
[1724685940814,0.87184,2720.0,2719.8,0.36756]
[1724685941015,3.2078,2720.1,2719.5,5.08633068]
[1724685941219,3.57533,2720.1,2719.8,0.36756]
[1724685942220,3.57533,2720.1,2719.4,1.92796282]
[1724685942221,4.59565,2720.0,2719.4,0.00885124]
[1724685942405,3.5754,2719.5,2719.4,0.00885124]
[1724685942817,0.91905,2719.4,2718.8,4.195]
[1724685943012,0.36768,2718.9,2718.7,0.5059]
[1724685943508,3.2078,2719.0,2718.7,0.5059]
[1724685943809,0.36769,2718.9,2718.7,0.50925503]
[1724685944008,0.3677,2718.8,2718.7,0.00335503]
[1724685944213,4.0461,2718.8,2718.7,0.00335503]
[1724685944617,9.0461,2718.8,2718.7,0.00335503]
[1724685945207,0.36771,2718.7,2718.6,0.00551724]
[1724685945417,5.00591,2718.7,2718.6,0.00551724]
[1724685945617,10.00591,2718.7,2718.6,0.00551724]
[1724685946119,5.00591,2718.7,2718.6,0.00903115]
[1724685946822,4.52121,2718.7,2718.6,0.00903115]
[1724685949831,4.98071,2718.7,2718.6,0.00903115]
[1724685950719,0.91932,2718.6,2717.8,3.18]
[1724685950923,4.613,2718.7,2717.8,3.54783]
[1724685950924,4.1424,2718.7,2717.8,3.54783]
[1724685951124,0.36776,2718.4,2717.9,3.94407974]
[1724685951430,0.36776,2718.4,2718.0,41.1678]
[1724685951630,0.36776,2718.4,2718.0,41.6626]
[1724685951819,0.36776,2718.4,2718.0,41.29750433]
[1724685951820,0.00317685,2718.4,2718.0,41.29750433]
[1724685952122,0.36777,2718.3,2718.0,41.29750433]
[1724685952331,0.36778,2718.2,2718.0,41.29750433]
[1724685952624,0.36779,2718.1,2718.0,41.29750433]
[1724685953123,0.36779,2718.1,2718.0,0.49750433]
[1724685953324,0.00317685,2718.4,2718.0,0.49750433]
[1724685953720,0.36779,2718.1,2718.0,0.49750433]
[1724685953922,0.00317685,2718.4,2718.0,0.49750433]
[1724685954125,0.36778,2718.2,2718.0,0.49750433]
[1724685954332,0.36777,2718.3,2718.0,0.37050433]
[1724685954529,0.36777,2718.3,2718.0,0.84250433]
[1724685955026,0.36778,2718.2,2718.0,0.47470433]
[1724685955331,0.36779,2718.1,2718.0,0.00270433]
[1724685955527,0.87003685,2718.4,2718.1,0.36779]
[1724685955829,0.36778,2718.2,2718.1,0.4993]
[1724685957232,0.36779,2718.1,2718.0,0.00270433]
[1724685959027,0.36778,2718.2,2718.0,0.00270433]
[1724685959227,3.2078,2718.3,2718.0,0.00270433]
[1724685959533,3.2078,2718.3,2718.1,0.36779]
[1724685959733,3.57557,2718.3,2718.1,0.36779]
[1724685959936,3.57557,2718.3,2718.2,0.4593]
[1724685960429,3.2078,2718.3,2718.2,0.82708]
[1724685960733,0.00317685,2718.4,2718.3,0.36777]
[1724685960921,0.00317685,2718.4,2718.3,5.45109]
[1724685961334,0.00317685,2718.4,2718.3,4.53167]
[1724685961734,0.00317685,2718.4,2718.3,0.85327]
[1724685962429,0.00317685,2718.4,2718.3,5.45109]
[1724685963227,0.00317685,2718.4,2718.3,4.53167]
[1724685966428,0.00317685,2718.4,2718.3,0.85327]
[1724685966632,0.00317685,2718.4,2718.3,4.53167]
[1724685967934,0.37092685,2718.4,2718.2,4.00707]
[1724685968132,0.00317685,2718.4,2718.1,3.57559]
[1724685968330,0.37093685,2718.4,2718.2,0.36777]
[1724685968836,0.36778,2718.2,2718.1,3.2078]
[1724685969042,0.36777,2718.3,2718.1,3.57559]
[1724685969236,0.36779,2718.2,2718.0,0.85500433]
[1724685969430,0.36779,2718.1,2718.0,0.48720433]
[1724685969938,0.36779,2718.1,2718.0,0.85501433]
[1724685970141,0.92258685,2718.4,2718.1,0.36778]
[1724685970142,0.36777,2718.3,2718.1,0.36778]
[1724685970445,0.36778,2718.2,2718.0,0.85500433]
[1724685970651,0.36779,2718.1,2718.0,0.85501433]
[1724685970943,0.36779,2718.1,2718.0,0.00270433]
[1724685971137,4.04699,2718.1,2718.0,0.00270433]
[1724685972032,0.36781,2718.0,2717.9,0.00551724]
[1724685972234,0.91974,2717.4,2716.5,0.4661]
[1724685972433,0.91974,2717.4,2716.2,1.90703068]
[1724685972434,0.4598,2717.3,2716.2,0.4812]
[1724685972633,0.36801,2716.6,2716.2,0.4812]
[1724685972830,0.36803,2716.4,2716.2,0.4812]
[1724685973029,0.00366111,2716.4,2716.2,0.48545103]
[1724685973639,0.00366111,2716.4,2716.3,0.36804]
[1724685973947,0.00366111,2716.4,2716.2,0.85349103]
[1724685974128,0.00366111,2716.4,2716.2,0.48545103]
[1724685974539,0.00366111,2716.4,2716.2,0.00425103]
[1724685975340,0.37169111,2716.4,2716.2,0.00425103]
[1724685975848,0.00366111,2716.4,2716.2,0.00425103]
[1724685976137,0.00366111,2716.4,2716.3,0.36804]
[1724685976337,0.00366111,2716.4,2716.3,4.04964]
[1724685978935,0.00366111,2716.4,2716.2,0.00425103]
[1724685978936,0.37169111,2716.4,2716.2,0.00425103]
[1724685979241,0.00366111,2716.4,2716.2,0.00425103]
[1724685979444,0.37168111,2716.4,2716.2,0.00425103]
[1724685980339,0.00366111,2716.4,2716.2,0.00425103]
[1724685980546,0.00366111,2716.4,2716.2,0.37229103]
[1724685981240,0.00366111,2716.4,2716.2,0.00425103]
[1724685981443,0.37168111,2716.4,2716.2,0.00425103]
[1724685981741,0.00366111,2716.4,2716.3,0.36804]
[1724685982143,0.00366111,2716.4,2716.3,4.04964]
[1724685985440,0.00366111,2716.4,2716.3,4.96973]
[1724685985641,0.00551724,2716.6,2716.5,0.36801]
[1724685985941,3.2078,2717.4,2716.5,6.3878]
[1724685986146,0.36794,2717.0,2716.8,0.36796]
[1724685986452,0.36795,2716.9,2716.7,0.36797]
[1724685986645,0.37224467,2716.9,2716.7,0.36797]
[1724685986941,0.92419467,2716.9,2716.5,3.5758]
[1724685987143,0.92419467,2716.9,2716.4,3.4307]
[1724685987339,0.36799,2716.7,2716.4,3.79871]
[1724685987543,0.92419467,2716.9,2716.4,0.36801]
[1724685987846,0.36799,2716.6,2716.4,0.36801]
[1724685988150,0.92419467,2716.9,2716.5,0.368]
[1724685988339,0.36798,2716.7,2716.5,0.368]
[1724685988550,0.368,2716.6,2716.4,0.36801]
[1724685988743,0.92419467,2716.9,2716.5,0.368]
[1724685989046,0.36798,2716.7,2716.5,0.368]
[1724685989841,0.36797,2716.8,2716.6,0.36799]
[1724685990149,0.37225467,2716.9,2716.7,0.36798]
[1724685990451,0.00429467,2716.9,2716.8,0.36797]
[1724685991741,0.00429467,2716.9,2716.8,4.04877]
[1724685991941,0.00429467,2716.9,2716.8,5.4421]
[1724685992149,0.00551724,2717.1,2717.0,1.2878]
[1724685992342,0.00551724,2717.1,2717.0,0.36794]
[1724685992649,0.00551724,2717.1,2717.0,4.04874]
[1724685993036,0.00551724,2717.1,2716.8,3.6812]
[1724685993246,0.36794,2717.0,2716.8,0.84136]
[1724685993542,0.00839237,2717.1,2716.8,0.4734]
[1724685993750,0.37633237,2717.1,2716.9,0.36795]
[1724685994242,0.00839237,2717.1,2717.0,0.36794]
[1724685998745,0.36795,2717.0,2716.8,0.84136]
[1724685998951,0.37633237,2717.1,2716.9,0.36795]
[1724685999347,0.36794,2717.0,2716.8,0.84136]
[1724685999939,0.36794,2717.0,2716.8,0.4734]
[1724686000156,0.87453237,2717.1,2716.9,0.36795]
[1724686000349,0.50659237,2717.1,2716.8,0.4734]
[1724686000544,0.87452237,2717.1,2716.9,0.36795]
[1724686000742,0.00839237,2717.1,2716.9,0.91989]
[1724686001039,0.00839237,2717.1,2717.0,0.36794]
[1724686001443,0.00839237,2717.1,2717.0,4.04874]
[1724686002650,0.00839237,2717.1,2717.0,4.9686]
[1724686003651,0.00839237,2717.1,2717.0,4.04874]
[1724686005146,0.00839237,2717.1,2717.0,44.84874]
[1724686005649,1.40873,2717.7,2717.4,0.36788]
[1724686005650,0.36786,2717.6,2717.4,0.36788]
[1724686005855,0.4891,2717.7,2717.3,0.36789]
[1724686005856,0.36787,2717.5,2717.3,0.36789]
[1724686006040,0.4891,2717.7,2717.0,41.90237076]
[1724686006241,0.36789,2717.4,2717.2,0.3679]
[1724686006657,0.37189161,2717.4,2717.2,0.3679]
[1724686006850,0.37189161,2717.4,2717.1,4.055444]
[1724686007054,0.37189161,2717.4,2717.1,4.423364]
[1724686007055,0.3679,2717.3,2717.1,4.423364]
[1724686007558,0.37190161,2717.4,2717.2,0.36791]
[1724686007855,0.37189161,2717.4,2717.2,0.3679]
[1724686008054,0.37189161,2717.4,2717.2,0.36791]
[1724686009658,0.00400161,2717.4,2717.3,0.3679]
[1724686009956,0.00400161,2717.4,2717.3,4.76206153]
[1724686010155,0.00400161,2717.4,2717.3,8.44206153]
[1724686010758,0.00400161,2717.4,2717.3,9.36182153]
[1724686010951,0.00400161,2717.4,2717.3,8.44206153]
[1724686011647,0.00400161,2717.4,2717.3,7.60676153]
[1724686011841,0.3679,2717.3,2717.2,0.36791]
[1724686012052,0.37190161,2717.4,2717.2,0.36791]
[1724686012855,0.92374161,2717.4,2717.0,40.8]
[1724686013058,0.36792,2717.2,2717.0,40.8]
[1724686013248,0.4628,2717.3,2717.1,0.36792]
[1724686013249,0.83071,2717.3,2717.1,0.36792]
[1724686013456,0.83071,2717.3,2717.0,40.8]
[1724686013457,0.4628,2717.3,2717.2,0.36791]
[1724686013862,0.00400161,2717.4,2717.3,0.3679]
[1724686015261,0.37189161,2717.4,2717.3,0.3679]
[1724686016057,0.00400161,2717.4,2717.3,0.3679]
[1724686016562,0.36793,2717.1,2716.8,3.79867]
[1724686016764,0.4971,2717.3,2717.1,0.36793]
[1724686017149,0.865,2717.3,2717.0,0.36793]
[1724686017857,0.4971,2717.3,2717.1,0.36793]
[1724686018060,3.21180161,2717.4,2717.2,0.36791]
[1724686018253,3.21180161,2717.4,2717.2,0.3679]
[1724686018958,3.21180161,2717.4,2716.8,4.78893027]
[1724686018959,3.21180161,2717.4,2717.1,0.36792]
[1724686019161,3.21180161,2717.4,2717.2,0.36791]
[1724686019361,3.57969161,2717.4,2717.1,0.36792]
[1724686020362,3.21180161,2717.4,2717.3,0.3679]
[1724686020860,3.21180161,2717.4,2717.3,4.0479]
[1724686021660,3.21180161,2717.4,2717.3,4.5259]
[1724686022054,0.00400161,2717.4,2717.3,4.5259]
[1724686025459,0.00400161,2717.4,2717.1,3.2078]
[1724686025460,0.36791,2717.3,2717.1,3.2078]
[1724686025665,0.4557,2717.3,2717.0,0.95623068]
[1724686025863,0.4557,2717.3,2716.8,3.9306]
[1724686025864,0.36795,2716.9,2716.8,3.4307]
[1724686026060,0.36799,2716.6,2716.5,0.95623068]
[1724686026368,0.91989,2717.0,2716.4,1.41353068]
[1724686026664,3.2078,2716.7,2716.4,0.4573]
[1724686026869,0.8551,2716.6,2716.4,0.4573]
[1724686027069,0.85509,2716.6,2716.3,3.79873]
[1724686027475,0.85509,2716.6,2716.3,4.75496068]
[1724686027769,0.85509,2716.6,2716.3,3.79873]
[1724686027956,0.4871,2716.6,2716.4,0.36802]
[1724686028268,3.2078,2716.7,2716.5,0.36801]
[1724686028567,3.2078,2716.7,2716.4,0.36801]
[1724686028568,3.57578,2716.7,2716.4,0.36801]
[1724686028759,3.57578,2716.7,2716.3,5.21456068]
[1724686029068,3.57578,2716.7,2716.4,0.36802]
[1724686029668,0.36798,2716.7,2716.4,0.36802]
[1724686029886,0.4758,2716.9,2716.3,4.84653068]
[1724686030066,0.36802,2716.4,2716.2,0.49105103]
[1724686030258,0.36804,2716.3,2716.2,0.00425103]
[1724686030455,0.86154,2716.3,2716.2,0.00425103]
[1724686030868,0.4935,2716.3,2716.2,0.00425103]
[1724686031067,0.86154,2716.3,2716.2,0.00425103]
[1724686031462,0.4935,2716.3,2716.2,0.00425103]
[1724686031867,3.57582,2716.5,2716.2,0.37230103]
[1724686032075,3.57582,2716.5,2716.3,0.36803]
[1724686032261,3.2078,2716.5,2716.4,0.36802]
[1724686032462,0.4742,2717.0,2716.9,0.36795]
[1724686032663,3.2078,2717.1,2716.6,0.483]
[1724686032866,0.36795,2717.0,2716.8,0.36797]
[1724686033069,3.682,2717.1,2716.8,0.36797]
[1724686033070,4.04993,2717.1,2716.8,0.36797]
[1724686033268,3.57573,2717.1,2716.9,0.36795]
[1724686034370,3.57573,2717.1,2716.7,4.03530247]
[1724686034371,3.2078,2717.1,2716.7,4.03530247]
[1724686034965,3.2078,2717.1,2716.8,40.8]
[1724686035366,3.2078,2717.1,2716.6,1.92253068]
[1724686035561,0.4654,2717.3,2716.9,4.08318299]
[1724686035875,0.00400161,2717.4,2717.2,0.36791]
[1724686036071,0.37189161,2717.4,2717.0,0.4973]
[1724686036272,0.00400161,2717.4,2717.1,0.36792]
[1724686036575,0.37189161,2717.4,2717.2,0.36791]
[1724686036771,0.37189161,2717.4,2717.3,0.3679]
[1724686036772,0.00400161,2717.4,2717.3,0.3679]
[1724686037067,0.00400161,2717.4,2717.3,11.47066461]
[1724686044269,0.00400161,2717.4,2717.3,11.10276461]
[1724686044974,0.00400161,2717.4,2717.3,11.47066461]
[1724686048570,0.00400161,2717.4,2717.3,8.26286461]
[1724686050577,0.00016998,2717.4,2717.3,10.13885529]
[1724686052091,0.00016998,2717.4,2717.3,13.37132846]
[1724686052578,0.00016998,2717.4,2717.3,11.94231688]
[1724686052772,0.00016998,2717.4,2717.3,13.37132846]
[1724686055485,0.00016998,2717.4,2717.3,18.37132846]
[1724686055691,0.00548267,2717.6,2717.5,2.20725]
[1724686055889,0.4547,2718.5,2718.4,0.36775]
[1724686056784,0.45904372,2718.5,2718.4,0.37053254]
[1724686058886,0.45904372,2718.5,2718.4,0.00278254]
[1724686059080,4.13744372,2718.5,2718.4,0.37053254]
[1724686059383,0.45904372,2718.5,2718.4,0.00278254]
[1724686059583,0.45904372,2718.5,2718.4,0.37053254]
[1724686062382,0.45904372,2718.5,2718.4,0.00278254]
[1724686063794,0.45904372,2718.5,2718.4,0.37053254]
[1724686067593,0.00434372,2718.5,2718.4,12.35201116]
[1724686067789,0.00434372,2718.5,2718.4,11.43263116]
[1724686068196,0.00434372,2718.5,2718.4,12.35201116]
[1724686070099,0.00434372,2718.5,2718.4,11.43263116]
[1724686070295,0.00434372,2718.5,2718.4,0.37053254]
[1724686071297,0.00434372,2718.5,2718.4,5.88769254]
[1724686071498,0.00434372,2718.5,2718.4,9.92643597]
[1724686074101,0.00434372,2718.5,2718.4,13.13423597]
[1724686079302,1.4295,2719.1,2718.4,17.76648597]
[1724686079603,4.12672,2719.8,2719.2,0.9191]
[1724686079804,1.4419,2719.7,2719.6,0.36759]
[1724686080410,1.44555007,2719.7,2719.6,0.36759]
[1724686080909,1.81313007,2719.7,2719.5,0.36759]
[1724686081205,0.36761,2719.5,2719.3,0.36762]
[1724686081395,1.44555007,2719.7,2719.2,0.36764]
[1724686081396,2.36450007,2719.7,2719.2,0.36764]
[1724686081596,2.36450007,2719.7,2719.0,4.1214]
[1724686081597,1.44555007,2719.7,2719.1,0.91915]
[1724686081793,1.44555007,2719.7,2719.5,0.3676]
[1724686081994,1.44555007,2719.7,2719.3,3.97044555]
[1724686081995,1.44555007,2719.7,2719.6,0.36759]
[1724686084195,0.00365007,2719.7,2719.6,12.23175336]
[1724686084392,0.00365007,2719.7,2719.6,12.71245336]
[1724686085108,0.00365007,2719.7,2719.6,16.83923336]
[1724686086006,0.9544,2720.3,2720.2,0.36751]
[1724686086899,0.95900902,2720.3,2720.2,0.36751]
[1724686089218,0.46700902,2720.3,2720.2,0.36751]
[1724686089510,0.00460902,2720.3,2720.2,0.36751]
[1724686089708,0.00460902,2720.3,2720.2,14.51127064]
[1724686089896,0.00460902,2720.3,2720.2,15.43005064]
[1724686090206,0.00460902,2720.3,2720.2,10.83527064]
[1724686090418,0.00460902,2720.3,2720.2,7.22351]
[1724686090701,0.00460902,2720.3,2720.2,12.2742226]
[1724686090903,0.00460902,2720.3,2720.2,17.2742226]
[1724686091095,0.00460902,2720.3,2720.2,20.4820226]
[1724686092010,0.00460902,2720.3,2720.2,21.4008026]
[1724686092309,0.4692,2720.9,2720.8,0.36743]
[1724686092609,0.4692,2720.9,2720.7,3.54743]
[1724686092797,0.4692,2720.9,2720.8,0.36743]
[1724686093198,0.47372961,2720.9,2720.8,0.3712671]
[1724686094707,0.47372961,2720.9,2720.8,0.0038371]
[1724686094898,0.84113961,2720.9,2720.8,0.0038371]
[1724686095098,5.43487961,2720.9,2720.8,0.0038371]
[1724686095698,0.36747,2720.5,2720.4,0.36748]
[1724686095899,0.36747,2720.5,2720.3,3.79819]
[1724686096201,0.4817,2720.4,2720.1,3.18]
[1724686096401,0.4963,2720.3,2720.2,0.36751]
[1724686096704,0.4963,2720.3,2720.2,0.37061133]
[1724686096908,0.4817,2720.4,2720.3,0.36749]
[1724686097414,0.4817,2720.4,2720.3,4.56636234]
[1724686097609,0.4817,2720.4,2720.3,7.74636234]
[1724686098008,0.4817,2720.4,2720.3,7.37887234]
[1724686098212,0.4817,2720.4,2720.3,7.74636234]
[1724686099008,0.4963,2720.7,2720.3,11.05487234]
[1724686099210,0.4963,2720.7,2720.6,0.36745]
[1724686100004,0.86375,2720.7,2720.5,0.36746]
[1724686100312,0.4963,2720.7,2720.4,3.9841867]
[1724686100506,0.36746,2720.6,2720.4,4.3516667]
[1724686100703,0.36747,2720.5,2720.3,3.54749]
[1724686101012,0.4963,2720.7,2720.3,3.54749]
[1724686101198,0.36747,2720.5,2720.3,3.54749]
[1724686101398,0.36749,2720.4,2720.2,0.37061133]
[1724686101711,0.36749,2720.4,2719.8,3.4307]
[1724686101712,0.485,2720.3,2719.8,3.4307]
[1724686102008,0.485,2720.3,2719.9,4.23286298]
[1724686102009,0.36752,2720.1,2719.9,4.23286298]
[1724686102309,0.84912,2720.2,2720.0,0.36753]
[1724686102500,0.36752,2720.1,2720.0,0.36753]
[1724686102703,0.36752,2720.1,2720.0,0.37083098]
[1724686102899,0.84912,2720.2,2720.1,0.36752]
[1724686103210,0.4816,2720.2,2720.1,0.36752]
[1724686103604,3.2078,2720.5,2720.1,0.91881]
[1724686103810,3.2078,2720.5,2720.4,0.36748]
[1724686104006,3.21232961,2720.9,2720.3,3.18]
[1724686104211,0.36745,2720.7,2720.6,3.54744]
[1724686104412,0.36744,2720.7,2720.6,3.54744]
[1724686104613,0.4573,2720.8,2720.7,0.36744]
[1724686104814,0.82473,2720.8,2720.7,0.36744]
[1724686105315,0.82472,2720.8,2720.7,0.36744]
[1724686106517,0.4573,2720.8,2720.7,0.36744]
[1724686106918,0.82472,2720.8,2720.7,0.36744]
[1724686107322,4.1325,2720.8,2720.5,3.2078]
[1724686107625,0.36748,2720.4,2720.2,3.9035]
[1724686107916,3.7028,2720.7,2720.2,3.7982]
[1724686107917,0.82889,2720.3,2720.2,3.7982]
[1724686108317,0.82889,2720.3,2720.2,3.4307]
[1724686108525,0.4614,2720.3,2720.2,3.79821]
[1724686109721,0.36746,2720.6,2720.4,0.36748]
[1724686109933,3.7028,2720.7,2720.3,3.18]
[1724686110228,0.36746,2720.6,2720.4,0.36747]
[1724686110826,3.7028,2720.7,2720.5,0.36746]
[1724686111029,4.07025,2720.7,2720.5,0.36746]
[1724686111524,3.57524,2720.7,2720.6,0.36745]
[1724686111825,0.36746,2720.5,2720.4,0.36747]
[1724686112030,0.91864,2720.6,2720.2,3.7982]
[1724686112326,0.4775,2720.4,2720.2,3.7982]
[1724686112534,0.36749,2720.3,2720.2,3.4307]
[1724686112722,0.83179,2720.3,2720.2,3.4307]
[1724686112918,0.8318,2720.3,2720.1,0.36751]
[1724686113322,0.4643,2720.3,2720.2,0.36751]
[1724686114434,0.4643,2720.3,2720.1,0.36751]
[1724686114636,0.8318,2720.3,2720.1,0.36751]
[1724686115037,0.4643,2720.3,2720.2,0.36751]
[1724686115234,3.2078,2720.7,2720.0,3.18330098]
[1724686115235,0.36745,2720.6,2720.1,0.91879]
[1724686115534,0.83675,2720.6,2720.4,0.36747]
[1724686115728,0.83675,2720.6,2720.3,3.18]
[1724686115729,0.36746,2720.5,2720.3,3.18]
[1724686115936,0.83676,2720.6,2720.4,0.36747]
[1724686116627,0.83676,2720.6,2720.5,0.36746]
[1724686116828,0.83676,2720.6,2720.4,0.36747]
[1724686117021,0.83676,2720.6,2720.5,0.36746]
[1724686117228,0.4693,2720.6,2720.5,0.36746]
[1724686117635,3.57525,2720.7,2720.6,0.36745]
[1724686118823,7.25045,2720.7,2720.6,0.36745]
[1724686119028,7.25045,2720.7,2720.4,0.9341]
[1724686119231,0.81706,2720.6,2720.5,0.36746]
[1724686120830,0.4496,2720.6,2720.5,0.36746]
[1724686121238,0.81705,2720.6,2720.5,0.36746]
[1724686121538,0.4496,2720.6,2720.5,0.36746]
[1724686121736,0.81705,2720.6,2720.5,0.36746]
[1724686124536,0.3675,2720.3,2720.2,0.36751]
[1724686124931,0.91871,2720.4,2720.2,0.36751]
[1724686124932,0.4496,2720.6,2720.2,0.91877]
[1724686125133,0.4496,2720.6,2720.5,0.36746]
[1724686125134,0.81706,2720.6,2720.5,0.36746]
[1724686125734,3.57525,2720.7,2720.6,0.36745]
[1724686126427,7.25045,2720.7,2720.6,0.36745]
[1724686127028,7.69105,2720.7,2720.6,0.36745]
[1724686127427,8.17385,2720.7,2720.6,0.36745]
[1724686127832,8.62385,2720.7,2720.6,0.36745]
[1724686128039,0.36747,2720.6,2720.5,0.36746]
[1724686128539,0.36748,2720.5,2720.2,1.42245109]
[1724686128835,0.36749,2720.4,2720.3,0.36748]
[1724686129733,0.36749,2720.3,2720.2,1.42245109]
[1724686129936,1.28623,2720.3,2720.2,0.95735109]
[1724686130144,0.36752,2720.1,2720.0,4.75888207]
[1724686130334,0.36752,2720.1,2720.0,3.43400098]
[1724686130537,4.04432,2720.1,2720.0,3.43400098]
[1724686130943,9.96312,2720.1,2720.0,0.00330098]